[Event "Titled Tuesday Blitz June 13 Early 2023"]
[White "Chuemsakul, Sarocha"]
[Black "Nikulina, Alena"]
[WhiteFideId "6203710"]
[BlackFideId "4172051"]
[WhiteElo "1686"]
[BlackElo "1608"]
[Result "0-1"]
[Round "7"]
[TimeControl "180+2"]
[Date "2023.06.13"]
[WhiteClock "0:00:40"]
[BlackClock "0:00:15"]
[Board "172"]

1. d4 {[%clk 0:03:00]}  d5 {[%clk 0:02:59]} 2. c4 {[%clk 0:03:01]}  dxc4 {[%clk 0:02:58]} 3. Nf3 {[%clk 0:03:00]}  a6 {[%clk 0:02:54]} 4. a4 {[%clk 0:03:00]}  Nf6 {[%clk 0:02:53]} 5. e3 {[%clk 0:03:00]}  e6 {[%clk 0:02:48]} 6. Bxc4 {[%clk 0:03:00]}  c5 {[%clk 0:02:45]} 7. O-O {[%clk 0:03:00]}  Nc6 {[%clk 0:02:44]} 8. Nc3 {[%clk 0:02:53]}  Be7 {[%clk 0:02:41]} 9. d5 {[%clk 0:02:52]}  exd5 {[%clk 0:02:40]} 10. Nxd5 {[%clk 0:02:52]}  O-O {[%clk 0:02:36]} 11. Nxe7+ {[%clk 0:02:52]}  Qxe7 {[%clk 0:02:36]} 12. Qe2 {[%clk 0:02:43]}  Bg4 {[%clk 0:02:35]} 13. h3 {[%clk 0:02:43]}  Bh5 {[%clk 0:02:32]} 14. Bd2 {[%clk 0:02:44]}  Ne5 {[%clk 0:02:20]} 15. Bc3 {[%clk 0:02:41]}  Nxf3+ {[%clk 0:02:00]} 16. gxf3 {[%clk 0:02:42]}  Rad8 {[%clk 0:01:53]} 17. Rfd1 {[%clk 0:02:41]}  Rxd1+ {[%clk 0:01:52]} 18. Rxd1 {[%clk 0:02:40]}  Rd8 {[%clk 0:01:53]} 19. Kg2 {[%clk 0:02:38]}  Ne4 {[%clk 0:01:37]} 20. Rxd8+ {[%clk 0:02:35]}  Qxd8 {[%clk 0:01:36]} 21. Be5 {[%clk 0:02:30]}  Ng5 {[%clk 0:01:07]} 22. Qd3 {[%clk 0:02:11]}  Bxf3+ {[%clk 0:00:54]} 23. Kg3 {[%clk 0:02:11]}  Qc8 {[%clk 0:00:50]} 24. Qf1 {[%clk 0:02:02]}  Ne4+ {[%clk 0:00:49]} 25. Kh2 {[%clk 0:01:58]}  Qf5 {[%clk 0:00:44]} 26. Bf4 {[%clk 0:01:36]}  g5 {[%clk 0:00:39]} 27. Bg3 {[%clk 0:01:33]}  Nd2 {[%clk 0:00:31]} 28. Qd3 {[%clk 0:01:26]}  Be4 {[%clk 0:00:24]} 29. Qd8+ {[%clk 0:01:25]}  Kg7 {[%clk 0:00:23]} 30. Be2 {[%clk 0:01:08]}  Nf3+ {[%clk 0:00:20]} 31. Bxf3 {[%clk 0:01:07]}  Bxf3 {[%clk 0:00:19]} 32. Qd6 {[%clk 0:01:01]}  Bc6 {[%clk 0:00:18]} 33. Be5+ {[%clk 0:01:01]}  f6 {[%clk 0:00:17]} 34. Qe7+ {[%clk 0:00:59]}  Kg6 {[%clk 0:00:15]} 35. Bg3 {[%clk 0:00:40]}  Qf3 {[%clk 0:00:15]} 0-1


[Site "https://www.chess.com"]

[Event "Titled Tuesday Blitz June 13 Early 2023"]
[White "Ardila, Oscar Humberto"]
[Black "Sanchez, Robert"]
[WhiteFideId "4404742"]
[BlackFideId "2034360"]
[WhiteElo "1912"]
[BlackElo "1909"]
[Result "0-1"]
[Round "7"]
[TimeControl "180+2"]
[Date "2023.06.13"]
[WhiteClock "0:00:24"]
[BlackClock "0:01:51"]
[Board "173"]

1. d4 {[%clk 0:02:59]}  Nf6 {[%clk 0:03:00]} 2. c4 {[%clk 0:02:59]}  g6 {[%clk 0:02:59]} 3. Nc3 {[%clk 0:02:59]}  d6 {[%clk 0:03:00]} 4. e4 {[%clk 0:02:59]}  Bg7 {[%clk 0:03:01]} 5. Nf3 {[%clk 0:02:59]}  Nbd7 {[%clk 0:03:01]} 6. Be2 {[%clk 0:02:59]}  O-O {[%clk 0:03:01]} 7. O-O {[%clk 0:02:56]}  e5 {[%clk 0:03:02]} 8. d5 {[%clk 0:02:56]}  Qe7 {[%clk 0:03:02]} 9. Bg5 {[%clk 0:02:56]}  h6 {[%clk 0:03:02]} 10. Bxf6 {[%clk 0:02:56]}  Nxf6 {[%clk 0:03:02]} 11. Qc2 {[%clk 0:02:56]}  Nh5 {[%clk 0:03:01]} 12. g3 {[%clk 0:02:56]}  f5 {[%clk 0:02:59]} 13. Nh4 {[%clk 0:02:55]}  Qg5 {[%clk 0:02:53]} 14. exf5 {[%clk 0:02:41]}  gxf5 {[%clk 0:02:53]} 15. Qd1 {[%clk 0:02:36]}  Nf6 {[%clk 0:02:50]} 16. b4 {[%clk 0:02:22]}  f4 {[%clk 0:02:45]} 17. Nb5 {[%clk 0:02:14]}  Rf7 {[%clk 0:02:32]} 18. c5 {[%clk 0:02:09]}  Bh3 {[%clk 0:02:31]} 19. cxd6 {[%clk 0:02:07]}  Bxf1 {[%clk 0:02:30]} 20. Bxf1 {[%clk 0:02:04]}  fxg3 {[%clk 0:02:23]} 21. hxg3 {[%clk 0:02:03]}  Ng4 {[%clk 0:02:22]} 22. Nf3 {[%clk 0:01:21]}  Qh5 {[%clk 0:02:17]} 23. Bg2 {[%clk 0:01:12]}  Nxf2 {[%clk 0:02:13]} 24. Kxf2 {[%clk 0:01:09]}  e4 {[%clk 0:02:13]} 25. Qh1 {[%clk 0:00:58]}  Qxd5 {[%clk 0:02:08]} 26. Nxc7 {[%clk 0:00:54]}  Qd4+ {[%clk 0:01:59]} 27. Ke2 {[%clk 0:00:38]}  Qd3+ {[%clk 0:02:00]} 28. Ke1 {[%clk 0:00:36]}  exf3 {[%clk 0:01:57]} 29. Bxf3 {[%clk 0:00:31]}  Rxf3 {[%clk 0:01:52]} 30. Rd1 {[%clk 0:00:24]}  Bc3+ {[%clk 0:01:51]} 0-1


[Site "https://www.chess.com"]

[Event "Titled Tuesday Blitz June 13 Early 2023"]
[White "Kiseleva, Arina"]
[Black "Kopczynski, Michal"]
[WhiteFideId "4164989"]
[BlackFideId "1124200"]
[WhiteElo "1701"]
[BlackElo "2212"]
[Result "0-1"]
[Round "7"]
[TimeControl "180+2"]
[Date "2023.06.13"]
[WhiteClock "0:00:01"]
[BlackClock "0:02:21"]
[Board "174"]

1. d4 {[%clk 0:03:00]}  Nf6 {[%clk 0:02:59]} 2. Nf3 {[%clk 0:03:00]}  g6 {[%clk 0:03:00]} 3. c4 {[%clk 0:03:00]}  Bg7 {[%clk 0:03:01]} 4. Nc3 {[%clk 0:03:00]}  d6 {[%clk 0:03:01]} 5. e4 {[%clk 0:02:58]}  O-O {[%clk 0:03:02]} 6. Be2 {[%clk 0:02:59]}  e5 {[%clk 0:03:02]} 7. d5 {[%clk 0:02:56]}  Ne8 {[%clk 0:03:03]} 8. h3 {[%clk 0:02:26]}  f5 {[%clk 0:03:03]} 9. g4 {[%clk 0:02:15]}  fxg4 {[%clk 0:03:00]} 10. hxg4 {[%clk 0:02:14]}  Bxg4 {[%clk 0:03:01]} 11. Bh6 {[%clk 0:02:01]}  Bxh6 {[%clk 0:03:00]} 12. Rxh6 {[%clk 0:02:00]}  Qf6 {[%clk 0:02:55]} 13. Ng5 {[%clk 0:01:16]}  Qxf2+ {[%clk 0:02:55]} 14. Kd2 {[%clk 0:01:16]}  Qf4+ {[%clk 0:02:54]} 15. Kd3 {[%clk 0:01:05]}  Bxe2+ {[%clk 0:02:53]} 16. Nxe2 {[%clk 0:01:01]}  Qxg5 {[%clk 0:02:54]} 17. Qh1 {[%clk 0:01:00]}  Rf7 {[%clk 0:02:44]} 18. Rg1 {[%clk 0:00:58]}  Qf6 {[%clk 0:02:42]} 19. Ng3 {[%clk 0:00:37]}  Qf3+ {[%clk 0:02:40]} 20. Qxf3 {[%clk 0:00:37]}  Rxf3+ {[%clk 0:02:41]} 21. Ke2 {[%clk 0:00:37]}  Rxg3 {[%clk 0:02:40]} 22. Rxg3 {[%clk 0:00:36]}  Nd7 {[%clk 0:02:39]} 23. b4 {[%clk 0:00:33]}  Nef6 {[%clk 0:02:39]} 24. Kd3 {[%clk 0:00:31]}  Rf8 {[%clk 0:02:37]} 25. a3 {[%clk 0:00:26]}  Kg7 {[%clk 0:02:37]} 26. Rh2 {[%clk 0:00:25]}  h5 {[%clk 0:02:37]} 27. Rc2 {[%clk 0:00:24]}  h4 {[%clk 0:02:33]} 28. Rh3 {[%clk 0:00:22]}  g5 {[%clk 0:02:33]} 29. c5 {[%clk 0:00:19]}  Nh5 {[%clk 0:02:33]} 30. cxd6 {[%clk 0:00:19]}  Nf4+ {[%clk 0:02:33]} 31. Ke3 {[%clk 0:00:18]}  Nxh3 {[%clk 0:02:32]} 32. dxc7 {[%clk 0:00:18]}  Nb6 {[%clk 0:02:33]} 33. d6 {[%clk 0:00:17]}  Rc8 {[%clk 0:02:28]} 34. a4 {[%clk 0:00:15]}  Nf4 {[%clk 0:02:26]} 35. a5 {[%clk 0:00:14]}  Nd7 {[%clk 0:02:26]} 36. b5 {[%clk 0:00:13]}  Ne6 {[%clk 0:02:25]} 37. Rd2 {[%clk 0:00:10]}  Nxc7 {[%clk 0:02:24]} 38. Rc2 {[%clk 0:00:01]}  Nd5+ {[%clk 0:02:21]} 0-1


[Site "https://www.chess.com"]

[Event "Titled Tuesday Blitz June 13 Early 2023"]
[White "Gertler, David"]
[Black "Luxama, Jacques Muller"]
[WhiteFideId "2017377"]
[BlackFideId "11900113"]
[WhiteElo "2314"]
[BlackElo "1931"]
[Result "1-0"]
[Round "7"]
[TimeControl "180+2"]
[Date "2023.06.13"]
[WhiteClock "0:00:08"]
[BlackClock "0:00:00"]
[Board "177"]

1. e4 {[%clk 0:03:00]}  e6 {[%clk 0:02:53]} 2. d4 {[%clk 0:03:00]}  d5 {[%clk 0:02:53]} 3. Nd2 {[%clk 0:03:01]}  Nf6 {[%clk 0:02:49]} 4. Bd3 {[%clk 0:03:01]}  dxe4 {[%clk 0:02:45]} 5. Nxe4 {[%clk 0:03:00]}  Be7 {[%clk 0:02:42]} 6. Nf3 {[%clk 0:02:59]}  O-O {[%clk 0:02:39]} 7. O-O {[%clk 0:02:58]}  b6 {[%clk 0:02:31]} 8. Qe2 {[%clk 0:02:56]}  Bb7 {[%clk 0:02:23]} 9. b3 {[%clk 0:02:51]}  Nbd7 {[%clk 0:02:17]} 10. c4 {[%clk 0:02:51]}  c5 {[%clk 0:02:03]} 11. Bb2 {[%clk 0:02:51]}  cxd4 {[%clk 0:01:58]} 12. Bxd4 {[%clk 0:02:49]}  Qc7 {[%clk 0:01:48]} 13. Rad1 {[%clk 0:02:43]}  Rfd8 {[%clk 0:01:35]} 14. Rfe1 {[%clk 0:02:36]}  Nxe4 {[%clk 0:01:21]} 15. Bxe4 {[%clk 0:02:36]}  Bxe4 {[%clk 0:01:19]} 16. Qxe4 {[%clk 0:02:37]}  Bf6 {[%clk 0:01:18]} 17. h3 {[%clk 0:01:40]}  Bxd4 {[%clk 0:01:15]} 18. Qxd4 {[%clk 0:01:38]}  Nc5 {[%clk 0:01:06]} 19. Qh4 {[%clk 0:01:37]}  h6 {[%clk 0:01:03]} 20. g3 {[%clk 0:00:35]}  a5 {[%clk 0:00:48]} 21. Nd4 {[%clk 0:00:33]}  Qb7 {[%clk 0:00:37]} 22. Nb5 {[%clk 0:00:27]}  Nd3 {[%clk 0:00:33]} 23. Re3 {[%clk 0:00:20]}  Ne5 {[%clk 0:00:16]} 24. Rxd8+ {[%clk 0:00:19]}  Rxd8 {[%clk 0:00:12]} 25. Qxd8+ {[%clk 0:00:20]}  Kh7 {[%clk 0:00:09]} 26. Nd4 {[%clk 0:00:15]}  Ng6 {[%clk 0:00:06]} 27. Qd6 {[%clk 0:00:12]}  e5 {[%clk 0:00:05]} 28. Nf5 {[%clk 0:00:10]}  Qc8 {[%clk 0:00:00]} 29. Ne7 {[%clk 0:00:08]} 1-0


[Site "https://www.chess.com"]

[Event "Titled Tuesday Blitz June 13 Early 2023"]
[White "Rodriguez Santiago, Jaime"]
[Black "Kiseljova, Marya"]
[WhiteFideId "3100898"]
[BlackFideId "4155009"]
[WhiteElo "2025"]
[BlackElo "1831"]
[Result "1-0"]
[Round "7"]
[TimeControl "180+2"]
[Date "2023.06.13"]
[WhiteClock "0:00:14"]
[BlackClock "0:00:00"]
[Board "180"]

1. d4 {[%clk 0:03:00]}  Nf6 {[%clk 0:02:59]} 2. c4 {[%clk 0:02:57]}  e6 {[%clk 0:02:59]} 3. Nc3 {[%clk 0:02:54]}  Bb4 {[%clk 0:02:59]} 4. e3 {[%clk 0:02:49]}  O-O {[%clk 0:02:34]} 5. Bd3 {[%clk 0:02:44]}  d5 {[%clk 0:02:21]} 6. Bd2 {[%clk 0:02:42]}  c5 {[%clk 0:02:11]} 7. Nge2 {[%clk 0:02:19]}  cxd4 {[%clk 0:02:04]} 8. Nxd4 {[%clk 0:02:08]}  Nc6 {[%clk 0:01:52]} 9. Nc2 {[%clk 0:02:02]}  Be7 {[%clk 0:01:51]} 10. cxd5 {[%clk 0:02:00]}  Nxd5 {[%clk 0:01:50]} 11. Nxd5 {[%clk 0:01:59]}  Qxd5 {[%clk 0:01:49]} 12. Bc3 {[%clk 0:01:57]}  Qxg2 {[%clk 0:01:41]} 13. Rf1 {[%clk 0:01:36]}  e5 {[%clk 0:01:23]} 14. Qe2 {[%clk 0:01:18]}  e4 {[%clk 0:01:06]} 15. Bc4 {[%clk 0:01:15]}  Bg4 {[%clk 0:01:05]} 16. Qd2 {[%clk 0:01:02]}  Rad8 {[%clk 0:01:03]} 17. Nd4 {[%clk 0:01:02]}  Ne5 {[%clk 0:00:58]} 18. Be2 {[%clk 0:00:51]}  Bxe2 {[%clk 0:00:45]} 19. Qxe2 {[%clk 0:00:50]}  Nf3+ {[%clk 0:00:19]} 20. Nxf3 {[%clk 0:00:49]}  Qxf3 {[%clk 0:00:19]} 21. Qxf3 {[%clk 0:00:49]}  exf3 {[%clk 0:00:20]} 22. Rg1 {[%clk 0:00:47]}  g6 {[%clk 0:00:20]} 23. Bd4 {[%clk 0:00:42]}  b6 {[%clk 0:00:19]} 24. O-O-O {[%clk 0:00:41]}  Bd6 {[%clk 0:00:18]} 25. h4 {[%clk 0:00:39]}  h5 {[%clk 0:00:17]} 26. Rg5 {[%clk 0:00:35]}  Be7 {[%clk 0:00:17]} 27. Rg3 {[%clk 0:00:34]}  Bxh4 {[%clk 0:00:17]} 28. Rxf3 {[%clk 0:00:34]}  Rc8+ {[%clk 0:00:17]} 29. Kb1 {[%clk 0:00:33]}  Rfd8 {[%clk 0:00:17]} 30. Rh1 {[%clk 0:00:32]}  Be7 {[%clk 0:00:16]} 31. Rg3 {[%clk 0:00:32]}  Kf8 {[%clk 0:00:15]} 32. f4 {[%clk 0:00:29]}  Bc5 {[%clk 0:00:15]} 33. Bc3 {[%clk 0:00:28]}  Rd3 {[%clk 0:00:14]} 34. f5 {[%clk 0:00:27]}  Rxe3 {[%clk 0:00:14]} 35. Rg2 {[%clk 0:00:25]}  Rce8 {[%clk 0:00:13]} 36. fxg6 {[%clk 0:00:25]}  fxg6 {[%clk 0:00:12]} 37. Rxg6 {[%clk 0:00:24]}  R8e6 {[%clk 0:00:07]} 38. Rg5 {[%clk 0:00:23]}  Be7 {[%clk 0:00:04]} 39. Rgxh5 {[%clk 0:00:22]}  Bf6 {[%clk 0:00:04]} 40. Rf1 {[%clk 0:00:20]}  Ke7 {[%clk 0:00:04]} 41. Rh7+ {[%clk 0:00:20]}  Kd6 {[%clk 0:00:04]} 42. Bxf6 {[%clk 0:00:20]}  Re1+ {[%clk 0:00:01]} 43. Rxe1 {[%clk 0:00:20]}  Rxe1+ {[%clk 0:00:02]} 44. Kc2 {[%clk 0:00:20]}  Re6 {[%clk 0:00:02]} 45. Bc3 {[%clk 0:00:19]}  Re2+ {[%clk 0:00:03]} 46. Kb3 {[%clk 0:00:19]}  Re6 {[%clk 0:00:04]} 47. Rxa7 {[%clk 0:00:19]}  Kc6 {[%clk 0:00:04]} 48. Rh7 {[%clk 0:00:18]}  Kb5 {[%clk 0:00:04]} 49. a4+ {[%clk 0:00:18]}  Kc6 {[%clk 0:00:04]} 50. Ka3 {[%clk 0:00:19]}  Re3 {[%clk 0:00:04]} 51. Rf7 {[%clk 0:00:19]}  Kd5 {[%clk 0:00:04]} 52. Rf6 {[%clk 0:00:19]}  Kc5 {[%clk 0:00:03]} 53. b4+ {[%clk 0:00:18]}  Kc4 {[%clk 0:00:03]} 54. Rc6+ {[%clk 0:00:18]}  Kd5 {[%clk 0:00:02]} 55. Rc8 {[%clk 0:00:19]}  Rf3 {[%clk 0:00:01]} 56. Kb3 {[%clk 0:00:20]}  Re3 {[%clk 0:00:01]} 57. Rd8+ {[%clk 0:00:20]}  Kc6 {[%clk 0:00:01]} 58. Rc8+ {[%clk 0:00:19]}  Kb7 {[%clk 0:00:01]} 59. Rh8 {[%clk 0:00:18]}  Kc6 {[%clk 0:00:02]} 60. Rh6+ {[%clk 0:00:18]}  Kb7 {[%clk 0:00:02]} 61. a5 {[%clk 0:00:18]}  bxa5 {[%clk 0:00:02]} 62. bxa5 {[%clk 0:00:19]}  Rd3 {[%clk 0:00:02]} 63. Kb4 {[%clk 0:00:18]}  Rg3 {[%clk 0:00:02]} 64. Rh7+ {[%clk 0:00:18]}  Ka8 {[%clk 0:00:02]} 65. Bd4 {[%clk 0:00:17]}  Rg4 {[%clk 0:00:03]} 66. Kc5 {[%clk 0:00:17]}  Rg5+ {[%clk 0:00:03]} 67. Kb6 {[%clk 0:00:17]}  Rg8 {[%clk 0:00:00]} 68. Ra7+ {[%clk 0:00:14]} 1-0


[Site "https://www.chess.com"]

[Event "Titled Tuesday Blitz June 13 Early 2023"]
[White "Al Mukhaini, Shima"]
[Black "Floresvillar Gonzalez, Luis Migu"]
[WhiteFideId "22005854"]
[BlackFideId "5100542"]
[WhiteElo "2253"]
[BlackElo "2040"]
[Result "1-0"]
[Round "7"]
[TimeControl "180+2"]
[Date "2023.06.13"]
[WhiteClock "0:00:17"]
[BlackClock "0:00:00"]
[Board "181"]

1. b3 {[%clk 0:02:54]}  e6 {[%clk 0:03:00]} 2. Bb2 {[%clk 0:02:45]}  d5 {[%clk 0:02:59]} 3. e3 {[%clk 0:02:41]}  Nf6 {[%clk 0:02:56]} 4. f4 {[%clk 0:02:29]}  c5 {[%clk 0:02:53]} 5. Nf3 {[%clk 0:02:25]}  Nc6 {[%clk 0:02:53]} 6. Bd3 {[%clk 0:02:22]}  b6 {[%clk 0:02:47]} 7. O-O {[%clk 0:02:18]}  a5 {[%clk 0:02:43]} 8. Bb5 {[%clk 0:02:05]}  Bd7 {[%clk 0:02:40]} 9. a3 {[%clk 0:02:00]}  Na7 {[%clk 0:02:36]} 10. Bd3 {[%clk 0:01:50]}  Bb5 {[%clk 0:02:28]} 11. Bxb5+ {[%clk 0:01:40]}  Nxb5 {[%clk 0:02:26]} 12. Nc3 {[%clk 0:01:36]}  Nd6 {[%clk 0:02:15]} 13. a4 {[%clk 0:01:33]}  Be7 {[%clk 0:02:14]} 14. Ne5 {[%clk 0:01:24]}  Qc7 {[%clk 0:02:11]} 15. Qe2 {[%clk 0:01:11]}  O-O {[%clk 0:02:10]} 16. Nb5 {[%clk 0:01:04]}  Nxb5 {[%clk 0:02:09]} 17. Qxb5 {[%clk 0:01:01]}  Ne4 {[%clk 0:02:06]} 18. d3 {[%clk 0:00:47]}  Nd6 {[%clk 0:01:57]} 19. Qc6 {[%clk 0:00:31]}  Qxc6 {[%clk 0:01:55]} 20. Nxc6 {[%clk 0:00:30]}  Bf6 {[%clk 0:01:55]} 21. Ne5 {[%clk 0:00:17]}  Rfc8 {[%clk 0:01:41]} 22. c4 {[%clk 0:00:17]}  Rd8 {[%clk 0:01:24]} 23. Rfd1 {[%clk 0:00:16]}  Rac8 {[%clk 0:01:23]} 24. Rab1 {[%clk 0:00:16]}  Kf8 {[%clk 0:01:17]} 25. Kf2 {[%clk 0:00:16]}  Ke7 {[%clk 0:01:16]} 26. Ke2 {[%clk 0:00:16]}  h5 {[%clk 0:01:11]} 27. g3 {[%clk 0:00:16]}  Bxe5 {[%clk 0:01:06]} 28. Bxe5 {[%clk 0:00:15]}  f6 {[%clk 0:01:04]} 29. Bxd6+ {[%clk 0:00:16]}  Rxd6 {[%clk 0:01:04]} 30. e4 {[%clk 0:00:16]}  dxc4 {[%clk 0:01:00]} 31. bxc4 {[%clk 0:00:15]}  e5 {[%clk 0:00:52]} 32. fxe5 {[%clk 0:00:14]}  fxe5 {[%clk 0:00:52]} 33. Rf1 {[%clk 0:00:14]}  Rf8 {[%clk 0:00:51]} 34. Rxf8 {[%clk 0:00:14]}  Kxf8 {[%clk 0:00:50]} 35. Rf1+ {[%clk 0:00:15]}  Rf6 {[%clk 0:00:49]} 36. Rf5 {[%clk 0:00:15]}  Rxf5 {[%clk 0:00:46]} 37. exf5 {[%clk 0:00:16]}  Kf7 {[%clk 0:00:28]} 38. Kf3 {[%clk 0:00:16]}  Kf6 {[%clk 0:00:27]} 39. Ke4 {[%clk 0:00:16]}  g5 {[%clk 0:00:08]} 40. fxg6 {[%clk 0:00:16]}  Kxg6 {[%clk 0:00:08]} 41. Kxe5 {[%clk 0:00:16]}  Kg5 {[%clk 0:00:00]} 42. h3 {[%clk 0:00:17]} 1-0


[Site "https://www.chess.com"]

[Event "Titled Tuesday Blitz June 13 Early 2023"]
[White "Liu, Kelsey"]
[Black "Vianello, Enrico"]
[WhiteFideId "30944481"]
[BlackFideId "810738"]
[WhiteElo "2249"]
[BlackElo "2133"]
[Result "0-1"]
[Round "7"]
[TimeControl "180+2"]
[Date "2023.06.13"]
[WhiteClock "0:00:01"]
[BlackClock "0:00:27"]
[Board "182"]

1. e4 {[%clk 0:02:53]}  d6 {[%clk 0:02:59]} 2. d4 {[%clk 0:02:52]}  Nf6 {[%clk 0:02:59]} 3. Nc3 {[%clk 0:02:52]}  e5 {[%clk 0:03:00]} 4. dxe5 {[%clk 0:02:52]}  dxe5 {[%clk 0:03:00]} 5. Qxd8+ {[%clk 0:02:52]}  Kxd8 {[%clk 0:03:01]} 6. Bg5 {[%clk 0:02:53]}  Be6 {[%clk 0:03:01]} 7. O-O-O+ {[%clk 0:02:53]}  Nd7 {[%clk 0:03:01]} 8. Bb5 {[%clk 0:02:53]}  Kc8 {[%clk 0:02:58]} 9. f4 {[%clk 0:02:47]}  exf4 {[%clk 0:02:55]} 10. Nge2 {[%clk 0:02:45]}  Bd6 {[%clk 0:02:50]} 11. Nxf4 {[%clk 0:02:44]}  Bg4 {[%clk 0:02:43]} 12. Rdf1 {[%clk 0:02:13]}  h6 {[%clk 0:02:41]} 13. Bxf6 {[%clk 0:02:14]}  Nxf6 {[%clk 0:02:39]} 14. h3 {[%clk 0:02:14]}  Bd7 {[%clk 0:02:38]} 15. Bxd7+ {[%clk 0:02:01]}  Nxd7 {[%clk 0:02:34]} 16. Nfd5 {[%clk 0:02:02]}  Ne5 {[%clk 0:02:20]} 17. Rf2 {[%clk 0:01:50]}  a6 {[%clk 0:02:16]} 18. Rhf1 {[%clk 0:01:50]}  Kd7 {[%clk 0:02:14]} 19. Ne2 {[%clk 0:01:45]}  Rhe8 {[%clk 0:02:09]} 20. Nd4 {[%clk 0:01:40]}  f6 {[%clk 0:02:03]} 21. Nf5 {[%clk 0:01:38]}  Bf8 {[%clk 0:02:03]} 22. Nxh6 {[%clk 0:00:48]}  Nc4 {[%clk 0:01:36]} 23. Ng4 {[%clk 0:00:40]}  Re6 {[%clk 0:01:26]} 24. Rd1 {[%clk 0:00:32]}  Kc6 {[%clk 0:01:14]} 25. Nc3 {[%clk 0:00:31]}  Rae8 {[%clk 0:01:11]} 26. Rf5 {[%clk 0:00:24]}  Nd6 {[%clk 0:01:09]} 27. Nf2 {[%clk 0:00:21]}  Nxf5 {[%clk 0:01:08]} 28. exf5 {[%clk 0:00:21]}  Rd6 {[%clk 0:01:08]} 29. Nd3 {[%clk 0:00:20]}  b6 {[%clk 0:00:59]} 30. Rf1 {[%clk 0:00:19]}  Rd7 {[%clk 0:00:55]} 31. Rf4 {[%clk 0:00:19]}  Bd6 {[%clk 0:00:54]} 32. Rg4 {[%clk 0:00:19]}  Be5 {[%clk 0:00:53]} 33. Nxe5+ {[%clk 0:00:19]}  Rxe5 {[%clk 0:00:53]} 34. b3 {[%clk 0:00:17]}  Kb7 {[%clk 0:00:49]} 35. Rf4 {[%clk 0:00:17]}  c5 {[%clk 0:00:49]} 36. Kb2 {[%clk 0:00:17]}  b5 {[%clk 0:00:49]} 37. g4 {[%clk 0:00:18]}  Rd2 {[%clk 0:00:48]} 38. h4 {[%clk 0:00:16]}  b4 {[%clk 0:00:46]} 39. Na4 {[%clk 0:00:16]}  Kc6 {[%clk 0:00:46]} 40. Rc4 {[%clk 0:00:15]}  Rh2 {[%clk 0:00:43]} 41. g5 {[%clk 0:00:14]}  Rxf5 {[%clk 0:00:41]} 42. gxf6 {[%clk 0:00:14]}  gxf6 {[%clk 0:00:41]} 43. a3 {[%clk 0:00:11]}  a5 {[%clk 0:00:40]} 44. axb4 {[%clk 0:00:10]}  axb4 {[%clk 0:00:40]} 45. Kc1 {[%clk 0:00:10]}  Rhf2 {[%clk 0:00:36]} 46. Rg4 {[%clk 0:00:09]}  R2f4 {[%clk 0:00:36]} 47. Rg8 {[%clk 0:00:06]}  Rxh4 {[%clk 0:00:34]} 48. Rc8+ {[%clk 0:00:06]}  Kb7 {[%clk 0:00:33]} 49. Rd8 {[%clk 0:00:02]}  Rg5 {[%clk 0:00:29]} 50. Kb2 {[%clk 0:00:03]}  Rh2 {[%clk 0:00:27]} 51. Rd5 {[%clk 0:00:01]}  Rxd5 {[%clk 0:00:27]} 0-1


[Site "https://www.chess.com"]

[Event "Titled Tuesday Blitz June 13 Early 2023"]
[White "Winslow, Elliott"]
[Black "Lisjak, Zlatko"]
[WhiteFideId "2002523"]
[BlackFideId "14502186"]
[WhiteElo "2045"]
[BlackElo "1998"]
[Result "0-1"]
[Round "7"]
[TimeControl "180+2"]
[Date "2023.06.13"]
[WhiteClock "0:00:39"]
[BlackClock "0:00:52"]
[Board "183"]

1. e4 {[%clk 0:02:55]}  d6 {[%clk 0:03:00]} 2. d4 {[%clk 0:02:53]}  Nf6 {[%clk 0:02:59]} 3. Nc3 {[%clk 0:02:53]}  c6 {[%clk 0:02:59]} 4. Nf3 {[%clk 0:02:47]}  Bg4 {[%clk 0:02:58]} 5. h3 {[%clk 0:02:44]}  Bh5 {[%clk 0:02:57]} 6. Bg5 {[%clk 0:02:39]}  Qb6 {[%clk 0:02:40]} 7. Qd2 {[%clk 0:02:38]}  h6 {[%clk 0:02:32]} 8. Be3 {[%clk 0:02:32]}  Nbd7 {[%clk 0:02:13]} 9. O-O-O {[%clk 0:02:22]}  Qc7 {[%clk 0:02:08]} 10. Bd3 {[%clk 0:01:52]}  b5 {[%clk 0:02:06]} 11. g4 {[%clk 0:01:43]}  Bg6 {[%clk 0:02:04]} 12. e5 {[%clk 0:01:43]}  Bxd3 {[%clk 0:01:47]} 13. exf6 {[%clk 0:01:29]}  Bh7 {[%clk 0:01:41]} 14. fxe7 {[%clk 0:01:21]}  Bxe7 {[%clk 0:01:38]} 15. Rhe1 {[%clk 0:01:19]}  Kf8 {[%clk 0:01:18]} 16. Bf4 {[%clk 0:01:10]}  Nb6 {[%clk 0:01:05]} 17. b3 {[%clk 0:00:57]}  b4 {[%clk 0:01:01]} 18. Ne4 {[%clk 0:00:55]}  Nd5 {[%clk 0:01:02]} 19. Kb1 {[%clk 0:00:39]}  Bxe4 {[%clk 0:00:52]} 0-1


[Site "https://www.chess.com"]